Cogmind - Beta 12 X1 @@@ ROGUE MODE // 2022.07.29 @ 08:30:33 Player: Boris Result: Destroyed by S7 Guard with Hardcell Cannon Performance ------------- Evolutions (7) 3500 Regions Visited (24) 4800 Robots Destroyed (337) 1685 Value Destroyed (16475) 16475 Prototype IDs (47) 940 Alien Tech Used (3) 600 Bonus (9405) 9405 TOTAL SCORE: 37405 Bonus ------- Triggered Max Security 2000 High Alert Combat Kills 4833 Follower Combat Kills 442 Entered Garrisons 200 Used RIF Installer 500 Entered DSFs 1000 Network Hubs Disabled 200 Aligned with FarCom 300 Scanned by Researcher 500 Friendly Fire -570 Cogmind --------- Core Integrity 0/1300 Matter 240/300 Energy 52/100 System Corruption 28% Temperature Cool (0) Movement Core (50) Location -3/Section 7 Parts ------- > --- POWER (2) -------- (None) > --- PROPULSION (4) --- (None) > --- UTILITY (7) ------ Core Physics Calibrator > --- WEAPON (8) ------- (None) > --- INVENTORY (5) ---- Light Particle Reactor Quantum Capacitor Peak State ------------ > --- POWER ------------ Quantum Reactor Quantum Reactor > --- PROPULSION ------- Combat Antigrav System Combat Antigrav System Combat Antigrav System Combat Antigrav System > --- UTILITY ---------- Advanced Heat Sink Experimental Cooling System Advanced Coolant Injector Weapon Mount Improved Target Analyzer Improved Armor Integrity Analyzer Advanced Force Field > --- WEAPON ----------- Heavy Laser Plasma Rifle Quantum Rifle Firepult Coil Gun Railgun Hypervelocity Railgun > --- INVENTORY -------- Improved Salvage Targeting Computer Advanced Transmission Jammer [Rating: 153] Favorites ----------- Power Reinforced Fission Core Engine Reinforced Deuterium Engine Power Core Reinforced Fission Core Reactor Particle Reactor Propulsion Combat Antigrav System Treads Light Treads Wheel Centrium Wheel Hover Unit Combat Antigrav System Flight Unit Cesium-ion Thruster Utility Advanced Heat Sink Device Advanced Heat Sink Storage Improved Matter Compressor Processor Improved Targeting Computer Hackware Advanced Hacking Suite Protection Hardened Light Armor Plating Artifact Core Physics Calibrator Weapon Gauss Rifle Energy Gun Wave Gun Energy Cannon Particle Cannon Ballistic Gun Gauss Rifle Ballistic Cannon Heavy Mass Driver Launcher Rocket Array Special Weapon Improved Remote Datajack Impact Weapon Heavy Mace Special Melee Weapon Datajack Build | -11 -10 -10 -9 -9 -9 -8 -8 -8 -8 -7 -6 -6 -5 -5 -5 -5 -5 -5 -5 -4 -4 -3 -3 -3 ------- Run | Scr Mat Min Mat Min Exi Min Mat Gar Mat Fac Fac DSF Fac Was Fac Ext Cet Arc Hub Fac DSF Res Qua Sec Slots Evolved 14 | . . . 2 . . . 2 . . 2 2 . 2 . . . . . . 2 . 2 . . Power 1 | . . . . . . . . . . . . . . . . . . . . 1 . . . . Propulsion 2 | . . . . . . . . . . . 1 . . . . . . . . 1 . . . . Utility 5 | . . . . . . . 1 . . 1 1 . 1 . . . . . . . . 1 . . Weapon 6 | . . . 2 . . . 1 . . 1 . . 1 . . . . . . . . 1 . . Parts Attached 281 | 3 . 2 21 . . 3 2 13 7 46 1 14 13 2 10 14 8 11 20 3 14 36 20 18 Power 22 | . . . 4 . . . . 1 . 4 . . 1 . . . . 1 1 . 1 5 3 1 Engine 8 | . . . 4 . . . . . . 4 . . . . . . . . . . . . . . Core 5 | . . . . . . . . 1 . . . . 1 . . . . . 1 . . 2 . . Reactor 9 | . . . . . . . . . . . . . . . . . . 1 . . 1 3 3 1 Propulsion 34 | 2 . . 4 . . . . 1 1 2 . 3 1 . . 3 1 . 2 1 4 1 2 6 Treads 22 | 2 . . 4 . . . . 1 1 2 . 3 1 . . 3 1 . 2 . . . . 2 Leg . | . . . . . . . . . . . . . . . . . . . . . . . . . Wheel 1 | . . . . . . . . . . . . . . . . . . . . 1 . . . . Hover 5 | . . . . . . . . . . . . . . . . . . . . . 4 1 . . Flight 6 | . . . . . . . . . . . . . . . . . . . . . . . 2 4 Utility 104 | . . 1 5 . . . 1 2 4 15 1 5 4 2 3 3 1 7 13 1 3 19 6 8 Device 62 | . . . 2 . . . . 1 1 5 . 5 4 2 2 1 . 6 10 1 3 12 3 4 Storage 1 | . . . . . . . . . . . . . . . 1 . . . . . . . . . Processor 21 | . . 1 1 . . . . 1 2 5 1 . . . . 1 . . 1 . . 3 2 3 Hackware 5 | . . . 1 . . . . . . . . . . . . . . . . . . 4 . . Protection 14 | . . . 1 . . . 1 . 1 5 . . . . . 1 1 1 2 . . . 1 . Artifact 1 | . . . . . . . . . . . . . . . . . . . . . . . . 1 Weapon 121 | 1 . 1 8 . . 3 1 9 2 25 . 6 7 . 7 8 6 3 4 1 6 11 9 3 Energy Gun 42 | . . 1 2 . . . . 2 1 9 . 3 5 . 2 3 2 2 . . 1 6 3 . Energy Cannon 14 | . . . . . . 1 . . . 4 . . . . . . 1 . . 1 1 1 5 . Ballistic Gun 51 | 1 . . 6 . . 2 1 7 1 8 . 3 . . 4 5 3 1 3 . 3 3 . . Ballistic Cannon 4 | . . . . . . . . . . . . . . . . . . . . . 1 . . 3 Launcher 4 | . . . . . . . . . . 2 . . . . 1 . . . 1 . . . . . Special Weapon 1 | . . . . . . . . . . . . . 1 . . . . . . . . . . . Impact Weapon 4 | . . . . . . . . . . 1 . . 1 . . . . . . . . 1 1 . Slashing Weapon . | . . . . . . . . . . . . . . . . . . . . . . . . . Piercing Weapon . | . . . . . . . . . . . . . . . . . . . . . . . . . Special Melee Weapon 1 | . . . . . . . . . . 1 . . . . . . . . . . . . . . Unidentified Prototypes 27 | . . . 1 . . . . . 1 9 . . . 1 2 . 4 . 1 . . 4 . 4 Corrupted Parts 4 | . . . . . . . . . . . . 3 . . . 1 . . . . . . . . System Corruption 24 | . . . . . . . . . . . . 20 . . . 4 . . . . . . . . Parts Lost 76 | . . . 2 1 . . . 1 1 6 . 9 5 . . 7 . . 11 . 1 2 18 12 Power 3 | . . . . . . . . . . . . . . . . . . . 1 . . . 2 . Propulsion 10 | . . . . . . . . . . 1 . 1 . . . . . . 1 . . . 2 5 Utility 24 | . . . 1 . . . . . 1 . . 2 2 . . 2 . . 3 . . 2 5 6 Weapon 39 | . . . 1 1 . . . 1 . 5 . 6 3 . . 5 . . 6 . 1 . 9 1 Highest Loss Streak 10 | . . . 2 1 . . . 1 1 2 . 7 1 . . 3 . . 10 . 1 1 8 5 To Critical Strikes 2 | . . . . . . . . . . . . . . . . 1 . . . . . . 1 . Average Slot Usage (%) 85 | . 42 62 96 97 55 80 79 90 85 88 92 74 86 91 93 90 93 93 88 38 64 96 70 22 Engine 3 | . . . 10 11 11 11 9 1 . 5 6 6 4 . . . . . . . . . . . Core 2 | . . . . . . . . 7 9 1 . . . 5 5 5 5 1 . 5 5 3 . . Treads 10 | . 28 28 22 22 22 22 18 9 9 7 13 11 11 11 11 11 11 11 10 10 2 . . 1 Hover 2 | . . . . . . . . . . . . . . . . . . . . . 15 19 18 . Device 14 | . . . 8 . . . . 8 9 8 6 6 20 26 29 26 23 27 22 15 21 21 19 3 Processor 8 | . . 5 8 11 11 11 9 9 9 16 19 20 11 5 5 2 5 5 4 5 5 5 5 7 Protection 4 | . . . 3 11 11 11 15 9 3 4 6 2 . . . 1 4 1 4 . . . . . Energy Gun 13 | . . 14 10 . . . . 6 9 20 26 10 20 29 28 12 17 17 13 . 1 17 11 . Ballistic Gun 20 | . 14 14 30 41 . 17 19 36 36 21 13 16 9 . 7 22 22 23 23 . 5 16 4 . Naked Turns . | . . . . . . . . . . . . . . . . . . . . . . . . . Heaviest Build 116 | 1 1 2 24 24 12 22 32 35 23 59 59 59 61 62 63 70 82 71 71 33 55 98 116 26 Greatest Support 110 | 40 3 3 40 40 40 40 40 75 75 75 40 100 105 105 105 105 110 110 110 27 64 64 64 26 Greatest Overweight (x) 2 | . . . . . . . . . . 2 1 1 . . . . . . . 2 2 1 1 . Average Overweight (x) . | . . . . . . . . . . . 1 . . . . . . . . . . . . . Largest Inventory Capacity 5 | 5 5 5 5 5 5 5 5 5 5 5 5 5 5 5 5 5 5 5 5 5 5 5 5 5 Average Capacity 5 | 5 5 5 5 5 5 5 5 5 5 5 5 5 5 5 5 5 5 5 5 5 5 5 5 5 Most Carried 5 | 4 4 5 5 5 5 5 5 5 5 5 4 5 5 5 5 5 5 5 5 5 5 5 5 5 Average Carried 4 | 1 4 4 4 5 4 3 3 4 4 4 4 4 4 5 5 5 4 5 5 4 3 4 3 4 Final Capacity 5 | 5 5 5 5 5 5 5 5 5 5 5 5 5 5 5 5 5 5 5 5 5 5 5 5 5 Final Carried 5 | 4 4 5 5 5 5 3 5 5 5 4 4 5 5 5 5 5 5 5 5 2 5 4 2 3 Class Distribution -------------------- 44% | Scavenger-Executioner 17% | Scavenger-Gunner 14% | Scavenger-Mutant 11% | Mutant 7% | Scavenger-Skirmisher Dominant Class ---------------- Mutant | -10/Materials Mutant | -10/Mines Scavenger-Gunner | -9/Materials Scavenger-Gunner | -9/Mines Mutant | -9/Exiles Scavenger-Mutant | -8/Mines Scavenger-Mutant | -8/Materials Scavenger-Mutant | -8/Garrison Scavenger-Skirmisher | -8/Materials Scavenger-Executioner | -7/Factory Scavenger-Executioner | -6/Factory Scavenger-Gunner | -6/DSF Scavenger-Executioner | -5/Factory Mutant | -5/Waste Scavenger-Executioner | -5/Factory Scavenger-Executioner | -5/Extension Scavenger-Executioner | -5/Cetus Scavenger-Executioner | -5/Archives Scavenger-Executioner | -5/Hub_04(d) Scavenger-Mutant | -4/Factory Scavenger-Skirmisher | -4/DSF Scavenger-Executioner | -3/Research Scavenger-Mutant | -3/Quarantine Mutant | -3/Section 7 Resources | -11 -10 -10 -9 -9 -9 -8 -8 -8 -8 -7 -6 -6 -5 -5 -5 -5 -5 -5 -5 -4 -4 -3 -3 -3 ----------- Run | Scr Mat Min Mat Min Exi Min Mat Gar Mat Fac Fac DSF Fac Was Fac Ext Cet Arc Hub Fac DSF Res Qua Sec Matter Collected 7438 | 226 . 24 456 70 . 59 . 889 263 910 . 341 286 47 352 719 229 360 781 . 277 820 212 117 Remotely 623 | . . . . . . . . . 52 . . 271 . . . . . . 300 . . . . . Salvage Created 20991 | . . 55 741 22 . 45 . 1487 687 3209 . 831 782 430 1044 1522 680 667 1949 . 544 1862 4365 69 Parts 781 | . . . 54 5 . 3 . 65 35 130 . 26 26 12 36 63 19 43 105 . 13 71 66 9 Haulers Intercepted 14 | . . . 3 . . . . . 2 3 . . 1 . 2 . . . 1 . . 2 . . Recyclers Shooed 4 | . . . . . . . . . 1 1 . . . . . . . . . . . 2 . . Parts Field Recycled . | . . . . . . . . . . . . . . . . . . . . . . . . . Retrieved Matter . | . . . . . . . . . . . . . . . . . . . . . . . . . Parts Self-Destructed . | . . . . . . . . . . . . . . . . . . . . . . . . . Prevented . | . . . . . . . . . . . . . . . . . . . . . . . . . Kills | -11 -10 -10 -9 -9 -9 -8 -8 -8 -8 -7 -6 -6 -5 -5 -5 -5 -5 -5 -5 -4 -4 -3 -3 -3 ------- Run | Scr Mat Min Mat Min Exi Min Mat Gar Mat Fac Fac DSF Fac Was Fac Ext Cet Arc Hub Fac DSF Res Qua Sec Combat Hostiles Destroyed 267 | . . 1 13 1 . 3 . 26 7 49 . 10 11 . 10 19 12 4 23 . 6 13 58 1 Guns 182 | . . 1 13 1 . 3 . 25 7 34 . 10 10 . 10 19 8 4 22 . . 9 6 . Cannons 6 | . . . . . . . . 1 . . . . . . . . . . . . . . 4 1 AOE 14 | . . . . . . . . . . 6 . . . . . . . . . . . . 8 . Classes Destroyed 22 | . . 1 9 1 . . . 2 2 4 . . . . . 1 . . . . . . 2 . Worker 7 | . . . 1 . . . . . . . . . . . 1 1 . . 4 . . . . . Builder 9 | . . . 1 . . . . . 2 1 . . . . 1 1 . . 3 . . . . . Tunneler 3 | . . . 1 2 . . . . . . . . . . . . . . . . . . . . Hauler 14 | . . . 3 . . . . . 2 3 . . 1 . 2 . . . 1 . . 2 . . Recycler 9 | . . . . . . . . . 2 2 . . . . 1 . . . 1 . . 3 . . Mechanic 3 | . . . . . . . . . 1 . . . . . . . . . . . . . 2 . Operator 13 | . . . 1 . . . . . 1 . . . . . . . . 9 1 . . 1 . . Watcher 12 | . . . 1 . . . . . 2 1 . . . . . . 1 . 2 . . 4 1 . Swarmer 19 | . . . 4 . . 3 . 6 2 . . . . . . . 4 . . . . . . . Saboteur 6 | . . . . . . . . . . . . . . . . . . . . . . . 6 . Grunt 113 | . . 1 6 . . . . 15 2 27 . 6 3 . 2 6 3 . 11 . . 4 27 . Brawler 15 | . . . 1 . . . . . . 1 . . 3 . . 1 1 . . . . . 8 . Duelist 10 | . . . . . . . . . . 1 . . . . . 1 . . . . . . 8 . Protector 4 | . . . . . . . . . . 2 . . . . . . . . . . . . 2 . Sentry 28 | . . . 3 . . . . 1 1 2 . . 1 . 3 7 . 4 3 . . 3 . . Demolisher 1 | . . . . 1 . . . . . . . . . . . . . . . . . . . . Specialist 7 | . . . . . . . . . . 3 . 3 . . . . . . . . 1 . . . Hunter 32 | . . . . . . . . 3 2 7 . . 2 . 4 2 . . 6 . 4 2 . . Programmer 22 | . . . . . . . . 1 . 4 . . 2 . 1 . . . 2 . . 4 7 1 Heavy 5 | . . . . . . . . . . 2 . 1 . . . . . . 1 . 1 . . . Behemoth 2 | . . . . . . . . . . . . . . . . 2 . . . . . . . . Cetus Guard 4 | . . . . . . . . . . . . . . . . . 4 . . . . . . . Investigator 1 | . . . . . . . . . . . . . . . . . . . . . . . 1 . Savage 1 | . . . . . . . . . . . . . . . . 1 . . . . . . . . Guerrilla 1 | . . . . . . . . . . . . . . . . 1 . . . . . . . . Best Kill Streak 30 | . . 1 8 2 . 3 . 7 13 10 . 3 3 . 4 7 8 4 7 . 3 5 30 1 Combat Bots Only 28 | . . 1 6 1 . 3 . 7 4 9 . 3 3 . 3 5 8 2 4 . 3 4 28 1 Max Kills in Single Turn 7 | . . 1 2 1 . 1 . 2 2 4 . 2 1 . 1 3 2 1 4 . 2 2 7 1 Gunslinging 1 | . . . . . . . . 1 1 1 . 1 . . . . 1 . 1 . . . . . Exploded 2 | . . . . . . . . . . 2 . . . . . . . . . . . . 2 . Melee . | . . . . . . . . . . . . . . . . . . . . . . . . . Uniques/NPCs Destroyed . | . . . . . . . . . . . . . . . . . . . . . . . . . Combat | -11 -10 -10 -9 -9 -9 -8 -8 -8 -8 -7 -6 -6 -5 -5 -5 -5 -5 -5 -5 -4 -4 -3 -3 -3 -------- Run | Scr Mat Min Mat Min Exi Min Mat Gar Mat Fac Fac DSF Fac Was Fac Ext Cet Arc Hub Fac DSF Res Qua Sec Damage Taken 17600 | . 42 28 615 202 . 50 . 1001 291 2068 . 1331 772 . 647 1137 222 271 2744 . 494 684 2458 2543 Core 2456 | . . . 114 44 . . . 107 55 231 . 229 43 . . 78 . . 214 . 39 . 361 941 Absorbed by Shields 448 | . . . . . . . . . . . . . . . . . . . . . . . 374 74 Reduced by Siege Mode 189 | . . . . . . . . 33 5 46 . 52 20 . 28 . 5 . . . . . . . Regen/Repaired (Parts) 105 | . . . . . . . . . . . . . . . . . . . . . . 105 . . Core Remaining (%) 79 | 100 . 100 . . . 60 . . 70 67 . 73 . . . . . . 66 . 96 . . . Volleys Fired 552 | . . 4 39 5 . 4 . 99 28 83 . 30 29 3 28 41 7 32 40 . 7 30 36 7 Largest 8 | . . 2 4 3 . 3 . 5 5 6 . 6 6 5 7 7 7 7 7 . 1 8 7 1 Hottest 569 | . . 60 164 69 . 114 . 204 153 379 . 320 430 405 503 363 376 404 404 . 250 425 569 66 Shots Fired 2248 | . . 8 143 17 . 11 . 258 139 362 . 123 119 15 164 218 34 121 235 . 7 199 68 7 Gun 2186 | . . 8 143 17 . 8 . 248 139 357 . 123 119 15 163 218 32 121 235 . . 197 43 . Cannon 61 | . . . . . . 3 . 10 . 5 . . . . . . 2 . . . 7 2 25 7 Launcher . | . . . . . . . . . . . . . . . . . . . . . . . . . Special 1 | . . . . . . . . . . . . . . . 1 . . . . . . . . . Kinetic 1309 | . . 4 105 17 . 8 . 229 112 177 . 69 34 . 60 135 20 51 164 . 1 95 21 7 Thermal 916 | . . 4 38 . . 3 . 29 27 178 . 41 85 15 103 83 14 70 71 . 6 104 45 . Explosive . | . . . . . . . . . . . . . . . . . . . . . . . . . Electromagnetic 22 | . . . . . . . . . . 7 . 13 . . . . . . . . . . 2 . Robot Hit Streak 56 | . . 3 12 5 . 2 . 30 32 54 . 30 24 5 22 56 21 30 35 . 7 25 20 2 Robot Miss Streak 7 | . . 5 4 2 . 2 . 4 3 3 . 3 2 . 1 1 1 4 3 . 2 7 4 . Penetration Max 2 | . . . . . . . . 1 1 1 . . . . 1 1 1 . 2 . . 1 1 . Secondary Targets 50 | . . . 3 . . . . 7 2 10 . 5 1 . 4 5 4 . 7 . . . 2 . Max Gunslinging Chain 2 | . . . 1 . . . . 2 1 2 . 1 1 . 1 1 1 . 1 . . . 1 . Shots Hit Robots 1481 | . . 3 79 9 . 5 . 156 92 254 . 98 85 4 120 154 23 82 151 . 6 110 48 2 Core Hits 854 | . . 2 36 3 . 4 . 70 40 140 . 30 32 4 38 68 22 36 82 . 16 56 168 7 Critical Kills 22 | . . . . . . . . 5 . 1 . . . . . . . 3 3 . . 6 4 . Critical Parts Destroyed 28 | . . . . . . . . . . 8 . 1 . . 1 . . 2 8 . . 5 3 . Critical Strikes 77 | . . . 1 . . . . 5 1 13 . 3 2 . 5 2 . 7 11 . . 19 7 1 Burn 23 | . . . 1 . . . . . 1 4 . 1 2 . 4 2 . 1 . . . 7 . . Destroy 52 | . . . . . . . . 5 . 9 . 1 . . 1 . . 6 11 . . 12 7 . Blast 1 | . . . . . . . . . . . . . . . . . . . . . . . . 1 Corrupt 1 | . . . . . . . . . . . . 1 . . . . . . . . . . . . Melee Attacks 12 | . . . . . . . . . . 2 . . . . . . . . . . . 2 8 . Impact 10 | . . . . . . . . . . . . . . . . . . . . . . 2 8 . Slashing . | . . . . . . . . . . . . . . . . . . . . . . . . . Piercing . | . . . . . . . . . . . . . . . . . . . . . . . . . Sneak Attacks 2 | . . . . . . . . . . 2 . . . . . . . . . . . . . . Combat Hostiles . | . . . . . . . . . . . . . . . . . . . . . . . . . Follow-up Attacks . | . . . . . . . . . . . . . . . . . . . . . . . . . Damage Inflicted 38983 | . . 35 1208 145 . 121 . 2440 1047 5442 . 2163 1851 189 2576 3394 1078 2088 5153 . 960 2683 6167 243 Guns 29348 | . . 28 1071 142 . 98 . 2339 1047 4322 . 2095 1851 94 2571 3390 673 2088 4562 . . 2412 565 . Cannons 1513 | . . . . . . . . 81 . 188 . . . . . . 72 . . . 257 12 809 94 Explosions 7798 | . . . 137 . . . . . . 916 . 68 . . . . 333 . 589 . 703 259 4793 . Melee . | . . . . . . . . . . . . . . . . . . . . . . . . . Ramming 324 | . . 7 . 3 . 23 . 20 . 16 . . . 95 5 4 . . 2 . . . . 149 Kinetic 16185 | . . 8 759 142 . 98 . 2198 732 1407 . 1163 588 . 733 1959 418 671 3567 . . 1327 321 94 Thermal 21536 | . . 20 449 . . . . 222 315 3968 . 777 1263 94 1838 1431 660 1417 995 . 960 1356 5771 . Explosive . | . . . . . . . . . . . . . . . . . . . . . . . . . Electromagnetic 938 | . . . . . . . . . . 51 . 223 . . . . . . 589 . . . 75 . Impact . | . . . . . . . . . . . . . . . . . . . . . . . . . Slashing . | . . . . . . . . . . . . . . . . . . . . . . . . . Piercing . | . . . . . . . . . . . . . . . . . . . . . . . . . Highest Corruption 28 | . . . 5 5 5 5 . . . 3 . 20 6 6 7 24 24 24 22 . . 2 7 28 Average Corruption 8 | . . . 5 5 5 5 . . . 2 . 6 3 6 6 20 24 15 3 . . 2 4 14 Corruption Purged 24 | . . . . . . . . . . . . . . . . . . 24 . . . . . . Corruption Blocked . | . . . . . . . . . . . . . . . . . . . . . . . . . Effects 258 | . . . 14 14 13 10 . . . 9 . 7 5 11 20 77 11 24 14 . . 8 8 13 Message Errors 44 | . . . 6 3 4 4 . . . 1 . 2 . 1 4 12 2 1 1 . . 1 1 1 Matter Fused 60 | . . . 2 3 4 . . . . 4 . 1 . 2 5 19 1 9 4 . . 3 3 . Heat Flow Errors 30 | . . . 1 2 . 3 . . . 1 . 1 1 1 4 10 1 3 . . . 1 . 1 Energy Discharges 29 | . . . 1 1 3 1 . . . 1 . . . 1 2 10 2 . 1 . . 1 3 2 Parts Rejected 7 | . . . . . . . . . . . . . 1 . . . . . 3 . . . . 3 Data Loss (minor) 29 | . . . 2 1 1 1 . . . 1 . 1 2 3 2 9 1 1 2 . . 1 . 1 Data Loss (major) 7 | . . . . . 1 . . . . 1 . 1 . . . 3 . . 1 . . . . . Misfires 15 | . . . 1 2 . . . . . . . . . 1 2 5 1 1 1 . . . 1 . Alerts 6 | . . . . 2 . . . . . . . . . 1 . 1 . 1 . . . . . 1 Misdirections 4 | . . . . . . . . . . . . . . . . . . . . . . . . 4 Weapon Failures 27 | . . . 1 . . 1 . . . . . 1 1 1 1 8 3 8 1 . . 1 . . Overload Shots 1 | . . . . . . . . . . . . . . . . . . . 1 . . . . . Overflow Damage 156 | . . . 69 . . . . . . 9 . . . . . . . . 18 . . . 60 . Projectiles 44 | . . . . . . . . . . . . . . . . . . . . . . . 44 . Explosions 112 | . . . 69 . . . . . . 9 . . . . . . . . 18 . . . 16 . Melee . | . . . . . . . . . . . . . . . . . . . . . . . . . Knockbacks 1 | . . . . . . . . . . . . . . . . . . . . . . . . 1 Impact . | . . . . . . . . . . . . . . . . . . . . . . . . . Kinetic 1 | . . . . . . . . . . . . . . . . . . . . . . . . 1 Secondary . | . . . . . . . . . . . . . . . . . . . . . . . . . Self-Inflicted Damage 473 | . . 3 154 . . . . . . . . . . . . . . . 26 . 128 . 57 105 Shots 17 | . . . 2 . . . . . . . . . . . . . . . 1 . 8 . 6 . Rammed 61 | . . 1 . 1 . 6 . 10 . 5 . . . 19 1 1 . . 3 . . . . 14 Targets Rammed 61 | . . 1 . 1 . 6 . 10 . 5 . . . 19 1 1 . . 3 . . . . 14 Kicked . | . . . . . . . . . . . . . . . . . . . . . . . . . Crushed . | . . . . . . . . . . . . . . . . . . . . . . . . . Highest Temperature 397 | . . 20 370 222 . 175 . 151 196 397 . 105 336 103 190 178 123 201 66 . 118 196 199 45 Average Temperature 81 | . . 12 89 62 . 87 . 51 68 100 . 41 95 39 88 61 44 56 23 . 52 96 103 45 Received Heat Transfer 3200 | . . 6 129 . . . . 360 90 675 . 423 72 . 99 222 90 36 246 . . 63 358 331 Effects 8 | . . . 4 . . . . . . 4 . . . . . . . . . . . . . . Shutdowns 2 | . . . 1 . . . . . . 1 . . . . . . . . . . . . . . Interference 3 | . . . 3 . . . . . . . . . . . . . . . . . . . . . Matter Decay 1 | . . . . . . . . . . 1 . . . . . . . . . . . . . . Short Circuit 2 | . . . . . . . . . . 2 . . . . . . . . . . . . . . Siege Activations 21 | . . . . . . . . 4 2 5 . 1 2 . 1 . 2 . 4 . . . . . Total Turns 364 | . . . . . . . . 48 51 118 . 23 39 . 36 . 13 . 36 . . . . . Longest Duration 39 | . . . . . . . . 21 35 39 . 23 25 . 36 . 9 . 13 . . . . . Robots Corrupted 1 | . . . . . . . . . . . . . . . . . . . 1 . . . . . Combat Hostiles 1 | . . . . . . . . . . . . . . . . . . . 1 . . . . . Parts Fried 3 | . . . . . . . . . . . . . . . . . . . 1 . . . 2 . Impact Corruptions . | . . . . . . . . . . . . . . . . . . . . . . . . . Robots Melted 72 | . . . . . . . . . . 10 . 2 1 . . . 5 . . . 7 4 43 . Combat Hostiles 64 | . . . . . . . . . . 9 . . 1 . . . 4 . . . 6 4 40 . Parts Melted 320 | . . 1 1 . . . . . . 44 . 3 7 . 18 10 13 5 . . 28 13 177 . Heat Transferred 67175 | . . 50 916 . . . . 481 777 11310 . 1493 2257 148 3598 2859 2690 2072 1258 . 4960 4523 27783 . Parts Sabotaged 5 | . . . . . . . . . . . . . . . . . . . . . . . 4 1 Parts Stolen . | . . . . . . . . . . . . . . . . . . . . . . . . . Parts Stripped . | . . . . . . . . . . . . . . . . . . . . . . . . . Power Chain Reactions 1 | . . . . . . . . . . . . 1 . . . . . . . . . . . . Missiles Intercepted . | . . . . . . . . . . . . . . . . . . . . . . . . . Alert | -11 -10 -10 -9 -9 -9 -8 -8 -8 -8 -7 -6 -6 -5 -5 -5 -5 -5 -5 -5 -4 -4 -3 -3 -3 ------- Run | Scr Mat Min Mat Min Exi Min Mat Gar Mat Fac Fac DSF Fac Was Fac Ext Cet Arc Hub Fac DSF Res Qua Sec Peak Influence 2973 | . 14 109 591 56 . 85 . 810 694 843 320 377 346 95 200 325 377 372 1042 500 502 531 2973 2162 Initial 1680 | . . 5 42 51 . . . . 394 315 320 224 197 95 66 98 49 150 63 495 350 282 135 1680 Average 412 | . 8 46 326 48 . 48 . 433 522 486 320 321 243 95 106 169 266 285 338 495 444 359 2361 1814 Maximum Alert Level 5 | . . . 2 . . . . 3 2 3 1 1 1 . 1 1 1 1 3 2 2 2 5 5 Low Security (%) 31 | 100 100 100 24 100 . 100 100 20 . . . . 27 100 98 52 40 35 20 . . 12 . . Level 1 34 | . . . 44 . . . . 24 34 24 100 100 72 . 1 47 59 64 65 . 25 49 . . Level 2 24 | . . . 30 . . . . 32 65 71 . . . . . . . . 2 100 74 38 . . Level 3 3 | . . . . . . . . 21 . 3 . . . . . . . . 11 . . . . . Level 4 . | . . . . . . . . . . . . . . . . . . . . . . . . . Level 5 . | . . . . . . . . . . . . . . . . . . . . . . . . . High Security . | . . . . . . . . . . . . . . . . . . . . . . . . . Max Security 5 | . . . . . . . . . . . . . . . . . . . . . . . 99 99 Sterilizations 1 | . . . . . . . . . . . . 1 . . . . . . . . . . . . Squads Dispatched 70 | . . . 2 . . . . . 1 14 . 2 3 . 1 1 . . 9 . 1 3 20 13 Investigation 7 | . . . 1 . . . . . . . . . 2 . . 1 . . 2 . . 1 . . Extermination 9 | . . . . . . . . . . 5 . . 1 . . . . . 1 . . 2 . . Reinforcement 18 | . . . 1 . . . . . 1 6 . 2 . . 1 . . . 5 . 1 . . 1 Assault 36 | . . . . . . . . . . 3 . . . . . . . . 1 . . . 20 12 Garrison . | . . . . . . . . . . . . . . . . . . . . . . . . . Intercept . | . . . . . . . . . . . . . . . . . . . . . . . . . Searches Triggered . | . . . . . . . . . . . . . . . . . . . . . . . . . Construction Impeded 2 | . . . . . . . . . . 1 . . . . . . . . 1 . . . . . Haulers Reinforced 2 | . . . . . . . . . . . . . . . 1 . . . 1 . . . . . Active Scanning Responses . | . . . . . . . . . . . . . . . . . . . . . . . . . Cargo Convoy Interrupts 1 | . . . . . . . . . . 1 . . . . . . . . . . . . . . Stealth | -11 -10 -10 -9 -9 -9 -8 -8 -8 -8 -7 -6 -6 -5 -5 -5 -5 -5 -5 -5 -4 -4 -3 -3 -3 --------- Run | Scr Mat Min Mat Min Exi Min Mat Gar Mat Fac Fac DSF Fac Was Fac Ext Cet Arc Hub Fac DSF Res Qua Sec Distress Signals 11 | . . . 1 2 . . . . 1 . . . . . 1 1 1 . 1 . . . . 3 Communications Jammed 1 | . . . . . . . . . . . . . . . . . . . . . . 1 . . Distress Signals 1 | . . . . . . . . . . . . . . . . . . . . . . 1 . . Times Spotted 493 | . . 5 22 1 . 3 . 26 10 67 . 10 12 . 10 23 11 13 53 . 6 19 125 77 Peak Tracking Total 40 | . . 2 6 1 . 3 . 5 3 12 . 3 3 . 3 5 5 1 19 . 3 4 27 40 Tactical Retreats 17 | . . . . . . . . . . 1 . . . . . . . . 4 . 1 . 4 7 Traps | -11 -10 -10 -9 -9 -9 -8 -8 -8 -8 -7 -6 -6 -5 -5 -5 -5 -5 -5 -5 -4 -4 -3 -3 -3 ------- Run | Scr Mat Min Mat Min Exi Min Mat Gar Mat Fac Fac DSF Fac Was Fac Ext Cet Arc Hub Fac DSF Res Qua Sec Traps Triggered 16 | . 1 . 1 . . . . . . 2 . 1 1 . . 3 . . 3 . 2 1 . 1 Indirectly 1 | . . . . . . . . . . . . . . . . . . . 1 . . . . . Trap Hack Attempts . | . . . . . . . . . . . . . . . . . . . . . . . . . Triggered . | . . . . . . . . . . . . . . . . . . . . . . . . . Disarmed . | . . . . . . . . . . . . . . . . . . . . . . . . . Reprogrammed . | . . . . . . . . . . . . . . . . . . . . . . . . . Reused . | . . . . . . . . . . . . . . . . . . . . . . . . . Traps Extracted . | . . . . . . . . . . . . . . . . . . . . . . . . . Installed . | . . . . . . . . . . . . . . . . . . . . . . . . . Triggered . | . . . . . . . . . . . . . . . . . . . . . . . . . Most Traps Carried 4 | . . 4 4 4 4 . . . . . . . . . . . . . . . . . . . Machines | -11 -10 -10 -9 -9 -9 -8 -8 -8 -8 -7 -6 -6 -5 -5 -5 -5 -5 -5 -5 -4 -4 -3 -3 -3 ---------- Run | Scr Mat Min Mat Min Exi Min Mat Gar Mat Fac Fac DSF Fac Was Fac Ext Cet Arc Hub Fac DSF Res Qua Sec Machines Disabled 33 | . . . 3 . . 1 . 1 2 3 . . 1 . . . 1 4 12 . . . 2 3 Max in Single Turn 11 | . . . 3 . . 1 . 1 1 1 . . 1 . . . 1 1 11 . . . 1 1 Garrison Access 3 | . . . . . . . . . . 2 . . . . . . . . 1 . . . . . Network Hub 1 | . . . . . . . . . . . . . . . . . . . 1 . . . . . Machines Sabotaged . | . . . . . . . . . . . . . . . . . . . . . . . . . Garrisons Compromised . | . . . . . . . . . . . . . . . . . . . . . . . . . Overloaded Fab Kills . | . . . . . . . . . . . . . . . . . . . . . . . . . Hacking | -11 -10 -10 -9 -9 -9 -8 -8 -8 -8 -7 -6 -6 -5 -5 -5 -5 -5 -5 -5 -4 -4 -3 -3 -3 --------- Run | Scr Mat Min Mat Min Exi Min Mat Gar Mat Fac Fac DSF Fac Was Fac Ext Cet Arc Hub Fac DSF Res Qua Sec Machines Accessed 51 | . 1 . 3 . 1 . 1 2 2 15 2 . 4 . 1 6 . . 5 1 . 7 . . Terminals 35 | . 1 . 3 . . . . 2 2 7 1 . 2 . 1 6 . . 5 1 . 4 . . Fabricators 6 | . . . . . . . . . . 4 . . 2 . . . . . . . . . . . Repair Stations 5 | . . . . . . . . . . 1 1 . . . . . . . . . . 3 . . Recycling Units . | . . . . . . . . . . . . . . . . . . . . . . . . . Scanalyzers 1 | . . . . . . . . . . 1 . . . . . . . . . . . . . . Garrison Access 3 | . . . . . . . 1 . . 2 . . . . . . . . . . . . . . Total Hacks 125 | . 4 . 9 . 1 . 1 6 4 38 2 . 9 . 1 12 . . 11 1 . 26 . . Successful 57 | . 2 . 4 . 1 . 1 1 1 23 1 . 4 . 1 4 . . 2 1 . 11 . . Failed 68 | . 2 . 5 . . . . 5 3 15 1 . 5 . . 8 . . 9 . . 15 . . Catastrophic 16 | . . . . . . . . 2 . 6 1 . 1 . . 1 . . 3 . . 2 . . Database Lockouts . | . . . . . . . . . . . . . . . . . . . . . . . . . Manual 56 | . 4 . 10 . 1 . . . 4 20 . . 7 . . 2 . . 7 . . 1 . . Terminals 88 | . 4 . 9 . . . . 6 4 19 1 . 5 . 1 12 . . 11 1 . 15 . . Fabricators 17 | . . . . . . . . . . 13 . . 4 . . . . . . . . . . . Repair Stations 14 | . . . . . . . . . . 2 1 . . . . . . . . . . 11 . . Recycling Units . | . . . . . . . . . . . . . . . . . . . . . . . . . Scanalyzers 2 | . . . . . . . . . . 2 . . . . . . . . . . . . . . Garrison Access 3 | . . . . . . . 1 . . 2 . . . . . . . . . . . . . . Terminal Hacks 31 | . 2 . 3 . 1 . . 1 . 10 1 . 1 . 1 3 . . 2 1 . 5 . . Part Schematic 1 | . . . . . . . . . . . . . 1 . . . . . . . . . . . Robot Analysis 1 | . 1 . . . . . . . . . . . . . . . . . . . . . . . Open Door 4 | . . . . . . . . . . . . . . . 1 3 . . . . . . . . Open DSF 2 | . . . . . . . . . . . 1 . . . . . . . . 1 . . . . Branch Access Points 4 | . 1 . 1 . . . . . . 1 . . . . . . . . . . . 1 . . Emergency Access Points 2 | . . . . . . . . 1 . . . . . . . . . . . . . 1 . . Terminal Index 2 | . . . . . . . . . . 1 . . . . . . . . 1 . . . . . Repair Station Index 1 | . . . . . . . . . . . . . . . . . . . . . . 1 . . Unreport Threat 8 | . . . 2 . . . . . . 3 . . . . . . . . 1 . . 2 . . Locate Traps 5 | . . . . . . . . . . 5 . . . . . . . . . . . . . . EX-Prototype ID Bank 1 | . . . . . 1 . . . . . . . . . . . . . . . . . . . Fabricator Hacks 4 | . . . . . . . . . . 2 . . 2 . . . . . . . . . . . Network Status 1 | . . . . . . . . . . 1 . . . . . . . . . . . . . . Load Schematic 1 | . . . . . . . . . . . . . 1 . . . . . . . . . . . Build 2 | . . . . . . . . . . 1 . . 1 . . . . . . . . . . . Repair Station Hacks 5 | . . . . . . . . . . . . . . . . . . . . . . 5 . . Scan Component 4 | . . . . . . . . . . . . . . . . . . . . . . 4 . . Repair 1 | . . . . . . . . . . . . . . . . . . . . . . 1 . . Recycling Unit Hacks . | . . . . . . . . . . . . . . . . . . . . . . . . . Scanalyzer 2 | . . . . . . . . . . 2 . . . . . . . . . . . . . . Insert Component 1 | . . . . . . . . . . 1 . . . . . . . . . . . . . . Analyze 1 | . . . . . . . . . . 1 . . . . . . . . . . . . . . Garrison Access Hacks 3 | . . . . . . . 1 . . 2 . . . . . . . . . . . . . . Unlock Access 1 | . . . . . . . 1 . . . . . . . . . . . . . . . . . Seal Access 2 | . . . . . . . . . . 2 . . . . . . . . . . . . . . Unauthorized Hacks 12 | . . . 1 . . . . . 1 7 . . 1 . . 1 . . . . . 1 . . Terminals 6 | . . . 1 . . . . . 1 1 . . 1 . . 1 . . . . . 1 . . Assimilate 1 | . . . . . . . . . 1 . . . . . . . . . . . . . . . Botnet 5 | . . . 1 . . . . . . 1 . . 1 . . 1 . . . . . 1 . . Fabricators 6 | . . . . . . . . . . 6 . . . . . . . . . . . . . . Report 1 | . . . . . . . . . . 1 . . . . . . . . . . . . . . Prioritize 1 | . . . . . . . . . . 1 . . . . . . . . . . . . . . Liberate 1 | . . . . . . . . . . 1 . . . . . . . . . . . . . . Fabnet 2 | . . . . . . . . . . 2 . . . . . . . . . . . . . . Haulers 1 | . . . . . . . . . . 1 . . . . . . . . . . . . . . Repair Stations . | . . . . . . . . . . . . . . . . . . . . . . . . . Recycling Units . | . . . . . . . . . . . . . . . . . . . . . . . . . Scanalyzers . | . . . . . . . . . . . . . . . . . . . . . . . . . Garrison Access . | . . . . . . . . . . . . . . . . . . . . . . . . . Data Cores Recovered 2 | . . . 1 . . . . . . . . . . . . . . . . . . 1 . . Used 2 | . . . 1 . . . . . . . . . . . . . . . . . . 1 . . Hacking Detections 41 | . 1 . 2 . . . . 2 2 12 2 . 4 . . 5 . . 4 . . 7 . . Full Trace Events 7 | . . . . . . . . 1 . . . . 2 . . 1 . . 2 . . 1 . . Feedback Events 1 | . . . . . . . . . . . . . . . . . . . 1 . . . . . Corruption 1 | . . . . . . . . . . . . . . . . . . . 1 . . . . . Feedback Blocked . | . . . . . . . . . . . . . . . . . . . . . . . . . Robot Schematics Acquired . | . . . . . . . . . . . . . . . . . . . . . . . . . Robots Built 4 | . . . . . . . . . . 4 . . . . . . . . . . . . . . Authchips . | . . . . . . . . . . . . . . . . . . . . . . . . . Time 134 | . . . . . . . . . . 134 . . . . . . . . . . . . . . Total Robot Build Rating 16 | . . . . . . . . . . 16 . . . . . . . . . . . . . . Part Schematics Acquired 2 | . . . . . . . . . . 1 . . 1 . . . . . . . . . . . Parts Built 2 | . . . . . . . . . . . . . 2 . . . . . . . . . . . Authchips . | . . . . . . . . . . . . . . . . . . . . . . . . . Time 95 | . . . . . . . . . . . . . 95 . . . . . . . . . . . Total Part Build Rating 10 | . . . . . . . . . . . . . 10 . . . . . . . . . . . Parts Repaired 1 | . . . . . . . . . . . . . . . . . . . . . . 1 . . Time 62 | . . . . . . . . . . . . . . . . . . . . . . 62 . . Parts Recycled . | . . . . . . . . . . . . . . . . . . . . . . . . . Recycled Matter . | . . . . . . . . . . . . . . . . . . . . . . . . . Retrieved Matter . | . . . . . . . . . . . . . . . . . . . . . . . . . Retrieved Components . | . . . . . . . . . . . . . . . . . . . . . . . . . Parts Scanalyzed 1 | . . . . . . . . . . 1 . . . . . . . . . . . . . . Part Schematics Acquired 1 | . . . . . . . . . . 1 . . . . . . . . . . . . . . Parts Damaged . | . . . . . . . . . . . . . . . . . . . . . . . . . Bothacking | -11 -10 -10 -9 -9 -9 -8 -8 -8 -8 -7 -6 -6 -5 -5 -5 -5 -5 -5 -5 -4 -4 -3 -3 -3 ------------ Run | Scr Mat Min Mat Min Exi Min Mat Gar Mat Fac Fac DSF Fac Was Fac Ext Cet Arc Hub Fac DSF Res Qua Sec Used RIF Installer 1 | . . . . . . . . 1 . . . . . . . . . . . . . . . . Robots Hacked 2 | . . . . . . . . . . 1 . . . . 1 . . . . . . . . . Non-combat 2 | . . . . . . . . . . 1 . . . . 1 . . . . . . . . . Combat . | . . . . . . . . . . . . . . . . . . . . . . . . . Robot Hacks Applied 2 | . . . . . . . . . . 1 . . . . 1 . . . . . . . . . ignore_repairs 1 | . . . . . . . . . . . . . . . 1 . . . . . . . . . find_fabricator 1 | . . . . . . . . . . 1 . . . . . . . . . . . . . . Relay Couplers Released 3 | . . . . . . . . . . . . . . . . . . . 3 . . . . . Machine Destruction 3 | . . . . . . . . . . . . . . . . . . . 3 . . . . . Fabnet Peak Effective % 6 | . . . . . . . . . . . 6 6 2 2 2 2 2 2 2 . . . . . Robots Rewired 11 | . . . . . . . . . . . . . . . . 11 . . . . . . . . Allies Hacked . | . . . . . . . . . . . . . . . . . . . . . . . . . Hacks Repelled . | . . . . . . . . . . . . . . . . . . . . . . . . . Allies | -11 -10 -10 -9 -9 -9 -8 -8 -8 -8 -7 -6 -6 -5 -5 -5 -5 -5 -5 -5 -4 -4 -3 -3 -3 -------- Run | Scr Mat Min Mat Min Exi Min Mat Gar Mat Fac Fac DSF Fac Was Fac Ext Cet Arc Hub Fac DSF Res Qua Sec Total Allies 22 | . . 3 . . . . . . . 4 . . . . . 15 . . . . . . . . Largest Group 7 | . . 3 3 . . . . . . 4 . . . . . 7 4 . . . . . . . Highest-Rated Group 214 | . . 40 40 . . . . . . 48 . . . . . 214 129 . . . . . . . Highest-Rated Ally 39 | . . 16 16 . . . . . . 12 . . . . . 39 39 . . . . . . . Total Orders 1 | . . . . . . . . . . . . . . . . . 1 . . . . . . . STAY 1 | . . . . . . . . . . . . . . . . . 1 . . . . . . . Ally Attacks 159 | . . 15 26 . . . . . . 42 . . . . . 76 . . . . . . . . Total Damage 2211 | . . 143 272 . . . . . . 456 . . . . . 1340 . . . . . . . . Kills 21 | . . 3 7 . . . . . . 5 . . . . . 6 . . . . . . . . Allies Corrupted . | . . . . . . . . . . . . . . . . . . . . . . . . . Allies Melted . | . . . . . . . . . . . . . . . . . . . . . . . . . Intel | -11 -10 -10 -9 -9 -9 -8 -8 -8 -8 -7 -6 -6 -5 -5 -5 -5 -5 -5 -5 -4 -4 -3 -3 -3 ------- Run | Scr Mat Min Mat Min Exi Min Mat Gar Mat Fac Fac DSF Fac Was Fac Ext Cet Arc Hub Fac DSF Res Qua Sec Robot Analysis Total 1 | . 1 . . . . . . . . . . . . . . . . . . . . . . . Derelict Logs Recovered 2 | . . 1 . 1 . . . . . . . . . . . . . . . . . . . . Drone Launches . | . . . . . . . . . . . . . . . . . . . . . . . . . Drone Recoveries . | . . . . . . . . . . . . . . . . . . . . . . . . . Exploration | -11 -10 -10 -9 -9 -9 -8 -8 -8 -8 -7 -6 -6 -5 -5 -5 -5 -5 -5 -5 -4 -4 -3 -3 -3 ------------- Run | Scr Mat Min Mat Min Exi Min Mat Gar Mat Fac Fac DSF Fac Was Fac Ext Cet Arc Hub Fac DSF Res Qua Sec Turns Passed 14696 | 33 28 331 879 509 561 405 81 1633 386 2481 230 321 626 371 683 1398 201 582 787 44 281 1082 533 230 Spaces Moved 8610 | 40 56 493 445 267 347 237 47 782 161 1211 94 111 275 218 323 724 93 228 334 30 264 860 489 481 Core 905 | 36 56 493 21 . . . . . . . . . . . . . . . 36 . . . 109 154 Treads 5861 | 4 . . 424 267 347 237 47 782 161 1211 94 111 275 218 323 724 93 228 298 17 . . . . Legs . | . . . . . . . . . . . . . . . . . . . . . . . . . Wheels 57 | . . . . . . . . . . . . . . . . . . . . 13 44 . . . Hover 1459 | . . . . . . . . . . . . . . . . . . . . . 220 860 379 . Flight 328 | . . . . . . . . . . . . . . . . . . . . . . . 1 327 Fastest Speed 24 | 50 50 50 50 160 160 160 160 160 160 160 245 160 152 152 152 152 160 160 50 90 68 68 32 24 Average Speed 129 | 61 50 50 154 160 160 160 160 160 160 161 245 179 159 152 152 154 160 160 148 136 79 78 78 33 Slowest Speed 320 | 160 50 50 160 160 160 160 160 160 160 320 245 245 160 152 152 160 160 160 170 170 130 138 138 50 Overloaded Moves 280 | . . . . . . . . . . . . . . . . . . . . . . . . 280 Propulsion Burnouts . | . . . . . . . . . . . . . . . . . . . . . . . . . Robots Hopped 2 | . . . . . . . . . . . . . . . . . . . . . . . . 2 Cave-ins Triggered . | . . . . . . . . . . . . . . . . . . . . . . . . . Exploration Rate (%) 47 | 3 22 93 51 71 63 66 6 74 21 36 3 94 9 87 12 86 47 89 34 1 95 20 57 35 Regions Visited 24 Branch Regions 10 Pre-discovered Areas . | . . . . . . . . . . . . . . . . . . . . . . . . . Known Exits Taken 9 | . 1 1 1 1 . . 1 . . . 1 . . . . . . . 1 1 . 1 . . Unknown Exits Taken 10 | 1 . . . . 1 1 . . 1 1 . . . . 1 1 1 1 . . . . 1 . Scrap Searched 3 | . . 1 . 1 . 1 . . . . . . . . . . . . . . . . . . Spaces Dug 13 | . . . . . . . . . . . . . . . . 2 . . . . 2 2 7 . Terrain Destroyed 284 | . . . 51 . . . . 2 . 1 . 3 . . . 7 . 14 191 . 2 5 7 1 Melee 9 | . . . . . . . . . . . . . . . . . . . . . . 2 7 . Projectile 74 | . . . . . . . . 1 . 1 . . . . . 7 . 14 46 . 2 2 . 1 AOE 199 | . . . 51 . . . . . . . . 3 . . . . . . 145 . . . . . Terrain Rammed 1 | . . . . . . . . . . . . . . . . . . . . . . . . 1 Walls Destroyed . | . . . . . . . . . . . . . . . . . . . . . . . . . Machines Disabled 1 | . . . . . . . . . . . . . . . . . . . . . . . . 1 Actions | -11 -10 -10 -9 -9 -9 -8 -8 -8 -8 -7 -6 -6 -5 -5 -5 -5 -5 -5 -5 -4 -4 -3 -3 -3 --------- Run | Scr Mat Min Mat Min Exi Min Mat Gar Mat Fac Fac DSF Fac Was Fac Ext Cet Arc Hub Fac DSF Res Qua Sec Total 10862 | 46 55 570 549 337 356 250 51 972 230 1536 94 164 405 243 453 890 133 379 506 33 324 1174 577 535 Wait 1033 | . . 63 29 65 . 1 . 53 27 151 . 5 81 . 80 8 16 101 103 . 24 216 9 1 Move 8583 | 39 55 492 444 266 346 236 47 780 160 1210 93 110 275 217 322 723 92 227 333 29 263 859 488 477 Hop 2 | . . . . . . . . . . . . . . . . . . . . . . . . 2 Pick Up 37 | 4 . 5 1 . 3 . 2 2 2 4 . 2 1 . 1 . 1 . . . 1 2 2 4 Fast Attach 208 | 3 . 1 13 . . 1 2 12 5 34 1 10 9 2 10 14 5 9 9 1 13 30 11 13 Attach 38 | . . 1 1 . . 2 . 1 2 5 . 2 . . . . 2 . . 2 1 3 9 7 Detach 39 | . . . 1 . . . . 1 2 8 . 1 . 1 . . 2 . 1 . 3 7 9 3 Swap 37 | . . . 7 . . . . . . 7 . 2 4 . . . 1 2 11 . . 3 . . Drop 149 | . . 3 14 . 7 . . 13 4 27 . 2 6 1 11 7 7 8 6 1 3 22 5 2 Fire 552 | . . 4 39 5 . 4 . 99 28 83 . 30 29 3 28 41 7 32 40 . 7 30 36 7 Melee 12 | . . . . . . . . . . 2 . . . . . . . . . . . 2 8 . Ram 18 | . . 1 . . . . . . . . . . . . . . . . 2 . . . . 15 Kick . | . . . . . . . . . . . . . . . . . . . . . . . . . Crush 44 | . . . . 1 . 6 . 10 . 5 . . . 19 1 1 . . 1 . . . . . Escape Stasis 12 | . . . . . . . . . . . . . . . . . . . . . 8 . . 4 Rewire 98 | . . . . . . . . 1 . . . . . . . 96 . . . . 1 . . . Trap . | . . . . . . . . . . . . . . . . . . . . . . . . . Miscellaneous . | . . . . . . . . . . . . . . . . . . . . . . . . . Route ------- -11/Scrapyard -10/Materials (discovered 2 exits: *Min x2) -10/Mines (discovered 2 exits: *Mat x2) -9/Materials (discovered 3 exits: *Mat / *Min x2) -9/Mines (discovered 3 exits: *Mat x2 / *Exi) -9/Exiles -8/Mines -8/Materials (discovered 2 exits: Sto / Gar) -8/Garrison (discovered 3 exits: *Mat x3) -8/Materials (discovered 2 exits: *Fac / *Sto) -7/Factory (discovered 4 exits: *Fac x2 / Low x2) -6/Factory -6/DSF -5/Factory (discovered 2 exits: *Fac / [*Upp]) -5/Waste -5/Factory -5/Extension (discovered 2 exits: *Fac / [*Cet]) -5/Cetus -5/Archives (discovered 3 exits: *Fac / *Hub x2) -5/Hub_04(d) -4/Factory -4/DSF -3/Research (discovered 3 exits: Arm / *Qua x2) -3/Quarantine -3/Section 7 History --------- Turn | Location | Event 11 | -11/Scrapyard | Discovered new exit (range 13) 34 | -11/Scrapyard | Entered Materials 45 | -10/Materials | Identified exit to Mines 62 | -10/Materials | Entered Mines 74 | -10/Mines | Found a hidden stash of uninstalled traps 159 | -10/Mines | Assisted by bots powering up and referring to "LRC-V3" 286 | -10/Mines | Discovered new exit (range 8) 310 | -10/Mines | Build established: Mutant 346 | -10/Mines | Discovered new exit (range 10) 361 | -10/Mines | Identified exit to Materials 393 | -10/Mines | Entered Materials 393 | -9/Materials | Accompanied by 3 allies 393 | -9/Materials | Evolved 2 slots: Weapon x2 649 | -9/Materials | Identified exit to Mines 711 | -9/Materials | Build established: Scavenger-Gunner 961 | -9/Materials | Discovered new exit (range 15) 1272 | -9/Materials | Entered Mines 1273 | -9/Mines | Assembled infested the area 1363 | -9/Mines | Discovered new exit (range 8) 1369 | -9/Mines | A weapon hastily lodged in a ceiling crevice suddenly fell to the ground 1411 | -9/Mines | Discovered new exit (range 13) 1427 | -9/Mines | Received a Rocket Launcher from a helpful Derelict 1602 | -9/Mines | Identified exit to Exiles 1775 | -9/Mines | Deemed a non-threat by the Exiles lab entrance 1781 | -9/Mines | Entered Exiles 1821 | -9/Exiles | Met 8R-AWN 1850 | -9/Exiles | Met EX-HEX 1895 | -9/Exiles | Met EX-BIN 1917 | -9/Exiles | Aligned with FarCom system 1919 | -9/Exiles | Given EX-Vault access code 1957 | -9/Exiles | Opened EX-Vault 1969 | -9/Exiles | Found Firepult 2005 | -9/Exiles | Warned to stay clear of 0b10 Research branches 2085 | -9/Exiles | Build established: Mutant 2268 | -9/Exiles | Met EX-DEC 2327 | -9/Exiles | Discovered new exit (range 11) 2342 | -9/Exiles | Left Exiles lab with Firepult 2342 | -9/Exiles | Entered Mines 2720 | -8/Mines | Discovered new exit (range 10) 2747 | -8/Mines | Entered Materials 2747 | -8/Materials | Evolved 2 slots: Utility x1, Weapon x1 2748 | -8/Materials | Identified exit to Storage 2828 | -8/Materials | Identified exit to Garrison 2828 | -8/Materials | Entered Garrison 2852 | -8/Garrison | Triggered checkpoint 3192 | -8/Garrison | Triggered checkpoint 3193 | -8/Garrison | Destroyed 7 combat bots 3223 | -8/Garrison | Discovered new exit (range 9) 3288 | -8/Garrison | Triggered checkpoint 3491 | -8/Garrison | Discovered new exit (range 11) 3540 | -8/Garrison | Triggered checkpoint 4284 | -8/Garrison | Triggered checkpoint 4410 | -8/Garrison | Discovered new exit (range 14) 4447 | -8/Garrison | Installed Relay Interface Framework 4461 | -8/Garrison | Entered Materials 4775 | -8/Materials | Build established: Scavenger-Skirmisher 4790 | -8/Materials | Discovered exit to Storage (range 9) 4831 | -8/Materials | Discovered new exit (range 10) 4847 | -8/Materials | Entered Factory 4847 | -7/Factory | Evolved 2 slots: Utility x1, Weapon x1 5172 | -7/Factory | Fabricated S-27 Virus (x4) 5189 | -7/Factory | Build established: Scavenger-Executioner 5452 | -7/Factory | Cargo convoy interrupted 5478 | -7/Factory | Destroyed 9 combat bots 5481 | -7/Factory | Discovered new exit (range 14) 5520 | -7/Factory | Found Prototype Launcher 5520 | -7/Factory | Identified Tesla Bomb Launcher 5529 | -7/Factory | Found Prototype Energy Cannon 5529 | -7/Factory | Identified Exp. Thermic Cannon 6014 | -7/Factory | Identified exit to Lower Caves 6196 | -7/Factory | Build established: Scavenger-Gunner 6447 | -7/Factory | First assault squad dispatched 6694 | -7/Factory | Build established: Scavenger-Executioner 7249 | -7/Factory | Discovered new exit (range 5) 7328 | -7/Factory | Entered another Factory area 7328 | -6/Factory | Evolved 2 slots: Propulsion x1, Utility x1 7558 | -6/Factory | Identified exit to DSF 7558 | -6/Factory | Entered DSF 7595 | -6/DSF | Additional patrols routed to DSF 7747 | -6/DSF | Lost 7 parts (1n2u4w) 7762 | -6/DSF | Sterilization system engaged 7776 | -6/DSF | Discovered new exit (range 18) 7782 | -6/DSF | Ambient heat levels rising (+10) 7797 | -6/DSF | Ambient heat levels rising (+10) 7812 | -6/DSF | Ambient heat levels rising (+10) 7827 | -6/DSF | Ambient heat levels rising (+10) 7842 | -6/DSF | Ambient heat levels rising (+10) 7857 | -6/DSF | Ambient heat levels rising (+10) 7872 | -6/DSF | Ambient heat levels rising (+10) 7877 | -6/DSF | System corruption reached 10% 7879 | -6/DSF | Entered Factory 7879 | -5/Factory | Evolved 2 slots: Utility x1, Weapon x1 8083 | -5/Factory | Fabricated Weapon Mount (x2) 8113 | -5/Factory | Discovered new exit (range 9) 8120 | -5/Factory | Discovered new exit (range 15) 8505 | -5/Factory | Sucked down chute 8505 | -5/Factory | Entered Waste 8505 | -5/Waste | The area was eerily silent 8525 | -5/Waste | Found Prototype Device 8525 | -5/Waste | Identified Exp. EM Disruption Field 8660 | -5/Waste | Discovered new exit (range 12) 8729 | -5/Waste | Build established: Mutant 8876 | -5/Waste | Entered Factory 9500 | -5/Factory | Found Prototype Launcher 9500 | -5/Factory | Identified Rocket Array 9548 | -5/Factory | Discovered new exit (range 9) 9559 | -5/Factory | Entered Extension 9655 | -5/Extension | Rescued a captive Derelict 9657 | -5/Extension | Rescued a captive Derelict 9658 | -5/Extension | Rescued a captive Derelict 9675 | -5/Extension | System corruption reached 10% 9707 | -5/Extension | Lost 3 parts (2u1w) 9742 | -5/Extension | Build established: Scavenger-Executioner 9841 | -5/Extension | Rescued a captive Derelict 10367 | -5/Extension | Spotted B-75 Beast 10380 | -5/Extension | Destroyed B-75 Beast 10388 | -5/Extension | Spotted B-75 Beast 10397 | -5/Extension | Destroyed B-75 Beast 10924 | -5/Extension | Discovered new exit (range 10) 10925 | -5/Extension | Discovered new exit (range 6) 10957 | -5/Extension | Entered Cetus 10957 | -5/Cetus | Accompanied by 4 allies 10982 | -5/Cetus | Spotted Cetus Guard 10982 | -5/Cetus | Spotted Cetus Guard 10983 | -5/Cetus | Destroyed Cetus Guard 10984 | -5/Cetus | Spotted Cetus Guard 10985 | -5/Cetus | Destroyed Cetus Guard 10986 | -5/Cetus | Destroyed Cetus Guard 10987 | -5/Cetus | Destroyed Cetus Guard 11081 | -5/Cetus | Destroyed 8 combat bots 11134 | -5/Cetus | Discovered new exit (range 16) 11158 | -5/Cetus | Entered Archives 11337 | -5/Archives | Discovered new exit (range 15) 11369 | -5/Archives | Discovered new exit (range 16) 11648 | -5/Archives | Discovered new exit (range 16) 11740 | -5/Archives | Entered Hub_04(d) 12154 | -5/Hub_04(d) | Discovered new exit (range 13) 12439 | -5/Hub_04(d) | Network Hub disabled 12453 | -5/Hub_04(d) | Spotted Lightning 12454 | -5/Hub_04(d) | Spotted Lightning 12457 | -5/Hub_04(d) | Spotted Lightning 12462 | -5/Hub_04(d) | Spotted Lightning 12473 | -5/Hub_04(d) | Spotted Lightning 12474 | -5/Hub_04(d) | Spotted Lightning 12475 | -5/Hub_04(d) | Spotted Lightning 12475 | -5/Hub_04(d) | Spotted Lightning 12475 | -5/Hub_04(d) | Spotted Lightning 12487 | -5/Hub_04(d) | Spotted B-75 Beast 12513 | -5/Hub_04(d) | Found Prototype Device 12513 | -5/Hub_04(d) | Identified Active Sensor Suite 12514 | -5/Hub_04(d) | Identified exit to Factory 12517 | -5/Hub_04(d) | Lost 10 parts (1p1n3u5w) 12527 | -5/Hub_04(d) | Entered Factory 12527 | -4/Factory | Evolved 2 slots: Power x1, Propulsion x1 12568 | -4/Factory | Identified exit to DSF 12571 | -4/Factory | Entered DSF 12590 | -4/DSF | Additional patrols routed to DSF 12694 | -4/DSF | Discovered new exit (range 15) 12852 | -4/DSF | Entered Research 12852 | -3/Research | Evolved 2 slots: Utility x1, Weapon x1 12878 | -3/Research | Identified exit to Armory 12878 | -3/Research | Identified exit to Quarantine 13742 | -3/Research | Repaired Broken Exp. Cooling System 13817 | -3/Research | Found Prototype Processor 13817 | -3/Research | Identified Spectral Analyzer 13934 | -3/Research | Entered Quarantine 13935 | -3/Quarantine | Maximum security lockdown engaged 13958 | -3/Quarantine | Cryocooling Duct disabled 13973 | -3/Quarantine | Ambient heat levels rising (+20) 14145 | -3/Quarantine | Destroyed 28 combat bots 14148 | -3/Quarantine | Lost 4 parts (4w) 14213 | -3/Quarantine | Destroyed 19 combat bots 14224 | -3/Quarantine | Destroyed Investigator 14251 | -3/Quarantine | Destroyed 9 combat bots 14320 | -3/Quarantine | Spotted Executioner 14368 | -3/Quarantine | Lost 4 parts (1p2u1w) 14393 | -3/Quarantine | Spotted Executioner 14424 | -3/Quarantine | Spotted Fortress 14462 | -3/Quarantine | Discovered new exit (range 6) 14466 | -3/Quarantine | Lost 8 parts (1p2n3u2w) 14467 | -3/Quarantine | Entered Section 7 14468 | -3/Section 7 | Maximum security lockdown engaged 14515 | -3/Section 7 | System corruption reached 10% 14515 | -3/Section 7 | Found Alien Artifact 14515 | -3/Section 7 | Identified Integrated Dissipator 14515 | -3/Section 7 | Installed Integrated Dissipator, increased core heat dissipation (+20) 14575 | -3/Section 7 | Found Quantum Capacitor 14593 | -3/Section 7 | Spotted S7 Guard 14600 | -3/Section 7 | Lost 3 parts (2n1u) 14609 | -3/Section 7 | Found Alien Artifact 14609 | -3/Section 7 | Identified Integrated Thermoelectric Network 14609 | -3/Section 7 | Installed Integrated Thermoelectric Network, gained heat-energy exchange potential 14622 | -3/Section 7 | Core integrity fell below 50% 14647 | -3/Section 7 | Core integrity fell below 20% 14654 | -3/Section 7 | Spotted Alpha 7 14674 | -3/Section 7 | Spotted Striker 14674 | -3/Section 7 | Spotted S7 Guard 14676 | -3/Section 7 | Lost 5 parts (2n3u) 14682 | -3/Section 7 | Found Alien Artifact 14682 | -3/Section 7 | Identified Core Physics Calibrator 14683 | -3/Section 7 | Spotted Investigator 14686 | -3/Section 7 | Spotted B-86 Titan 14688 | -3/Section 7 | Scanned by Researcher 14697 | -3/Section 7 | Destroyed by S7 Guard with Hardcell Cannon Last Messages --------------- 14693_ Slammed into Investigator. 14693_ Destabilizing: System corrupted (+2). 14694_ Held in stasis. 14694_ Investigator is analyzing... 14694_ Engulfed in stasis bubble. 14694_ Investigator engulfed in stasis bubble. 14694_ B-74 Champion engulfed in stasis bubble. 14694_ G-67 Veteran engulfed in stasis bubble. 14694_ S7 Guard engulfed in stasis bubble. 14694_ Striker engulfed in stasis bubble. 14694_ C-55 Analyst engulfed in stasis bubble. 14694_ Stasis bubble strength at 194. 14695_ Acquired 2 matter. 14695_ Striker stasis bubble strength at 195. 14695_ Stasis bubble strength at 188. 14696_ Striker stasis bubble strength at 190. 14696_ Core Analyzer destroyed. 14696_ System corrupted by crushing effect (+2). 14696_ Stasis bubble strength at 182. 14697_ System corrupted: Weapon Mount rejected. Map ----- +----------------------------------------------------+ | ???????????????????????# # " #??????????? | | ???????????????????????# + ! """ ???????????? | | ???????????????????????# # """" ???????????? | | ???????????????????????# # """ ????????????? | | ?????????#############?# #? ????????????? | | ????????? # ####? ???????????? | | ?????????? # #?##?? #??????????? | | ??????????? """ # #T"#??########??????????? | | ???????????"T"" """ # # "###########??????????? | | ?????????????"" """ ?# #?????????? | | ??????????????? ???#i "?????????? | | ??????????????#+#+######g """"" "?????????? | | ?????########?# bg gg C """??????????????? | | ?????? # Y########### """??????????????? | | ???????" """ # #??????????? ????????????? | | ???????" """ + #?????????? """""????????????? | | ???????" """ # g#?????????# ?"""?????????????? | | ?????? # ig########?BB ??????????????????? | | ?????########?# g# """"##BB???????????????????? | | ??????????????# # " "#"#????????????????????? | | ??????????????# g# |c%"%#?????????????????????? | | ???????""""" #o g# =hKl#??????????????????????? | | ???????"""!" / gilgppY"#??????????????????????? | | ???????" """ # e# %"gg#??????????????????????? | | ???????" ?#g i# !g"b#??????????????????????? | | ?????? "" ??# l g# g "@#??????????????????????? | | ?????? ????# Y %"c#??????????????????????? | | ?????####?????# ########??????????????????????? | | ??????????????#"%" ?????????????Y???????????????? | | ??????????????+ " #?????????????????????????????? | | ??????????????# #?????????????????????????????? | | ??????????????# #?????????????????????????????? | | ??????????????# #?????????????????????????????? | | ??????????????# "#?????????????????????????????? | | ??????????????# ""%#?????????????????????????????? | | ??????????????#"%"g#?????????????????????????????? | | ??????????????# " g??????????????????????????????? | | ??????????????? gg ??????????????????????????????? | | ?????????????????????????????????????????????????? | | ?????????????????????????????????????????????????? | | ?????????????????????????????????????????????????? | | ?????????????????????????????????????????????????? | | ?????????????????????????????????????????????????? | | ?????????????????????????????????????????????????? | | ?????????????????????????????????????????????????? | | ?????????????????????????????????????????????????? | | ?????????????????????????????????????????????????? | | ?????????????????????????????????????????????????? | | ?????????????????????????????????????????????????? | | ?????????????????????????????????????????????????? | +----------------------------------------------------+ Best States ------------- Heat Dissipation 141 Coolant Potential 100 Energy Generation 45 Energy Capacity 600 Matter Stores 300 Matter Capacity 300 Sight Range 22 Terrain Scan Range 14 Terrain Scan Density 110 Jamming Range 16 Power Amplification 30 Base Temperature (-) 200 Armor Coverage 600 Resistance: KI 30 Resistance: EM 75 Weapon Cycling 15 Evasion (%) 65 Targeting Accuracy 26 Melee Accuracy 8 Target Analysis 6 Core Analysis 9 Armor Integrity Analysis 40 Recoil Reduction 4 Offensive Hacking 14 Defensive Hacking 12 Item Schematics ----------------- Lrn. Tractor Beam | -7/Factory | Scanalyzed Weapon Mount | -5/Factory | Hacked Robot Schematics ------------------ None Fabricated ------------ S-27 Virus | x4 | -7/Factory | Preloaded Weapon Mount | x2 | -5/Factory Alien Tech Used ----------------- Integrated Dissipator Integrated Thermoelectric Network Core Physics Calibrator Achievements -------------- Executioner Gun Specialist Challenges ------------ None Game ------ Seed DisruptorKineticMount Manual? 0 Play Time 02:12:17 Cumulative 336.7 hours Start 2022.07.27 @ 20:05:31 End 2022.07.29 @ 08:30:33 Sessions 3 Manual Loads 0 Difficulty Rogue Special Mode None Game No. 120 Rogue 105 Adventurer 15 Explorer 0 Win Type - Total 17 Types 6/0/6/1/2/0/2/0/0 Lore% 92 Gallery% 92 Achievement% 81 Wizard Run 0 Options --------- ASCII 0 Keyboard 0 Movement Numpad Keybinds 0 Fullscreen 1 Font 18/SmallcapsGlow Map View 76x50 Tactical HUD 1 Map Filters NONE Filters NONE Steam 1 RUN: 3c1dfa89-98d9-4739-8646-805c0684f6eb